Cogmind - Beta 12 @@@ ROGUE MODE // 2024.02.11 @ 02:17:24 Player: Treadwheel Result: Destroyed by Y-45 Defender with Beam Rifle Performance ------------- Evolutions (0) 0 Regions Visited (2) 400 Robots Destroyed (24) 120 Value Destroyed (563) 563 Prototype IDs (0) 0 Alien Tech Used (0) 0 Bonus (0) 0 TOTAL SCORE: 1083 Bonus ------- None Cogmind --------- Core Integrity 0/250 Matter 263/300 Energy 125/125 System Corruption 0% Temperature Cool (36) Movement Walking (120) Location -10/Mines Parts ------- > --- POWER (1) -------- Light Ion Engine > --- PROPULSION (2) --- Aluminum Leg Aluminum Leg > --- UTILITY (2) ------ Medium Storage Unit Light Armor Plating > --- WEAPON (2) ------- Light Assault Rifle Heavy Assault Rifle > --- INVENTORY (10) --- Ion Engine Light Nuclear Core Aluminum Leg Aluminum Leg Improved Heat Sink Grenade Launcher Mining Laser Peak State ------------ > --- POWER ------------ Light Nuclear Core > --- PROPULSION ------- Light Treads Light Treads > --- UTILITY ---------- Small Storage Unit Seismic Detector > --- WEAPON ----------- Medium Laser Light Assault Rifle > --- INVENTORY -------- Light Ion Engine Aluminum Leg Aluminum Leg Wheel Compact Wheel Improved Terrain Scanner Grenade Launcher Mining Laser [Rating: 10] Favorites ----------- Power Light Nuclear Core Engine Light Ion Engine Power Core Light Nuclear Core Propulsion Light Treads Treads Light Treads Leg Aluminum Leg Utility Seismic Detector Device Seismic Detector Storage Medium Storage Unit Protection Light Armor Plating Weapon Light Assault Rifle Energy Gun Medium Laser Ballistic Gun Light Assault Rifle Build | -11 -10 -10 ------- Run | Jun Mat Min Slots Evolved . | . . . Power . | . . . Propulsion . | . . . Utility . | . . . Weapon . | . . . Parts Attached 20 | 7 3 10 Power 4 | 1 1 2 Engine 2 | 1 . 1 Core 2 | . 1 1 Reactor . | . . . Propulsion 5 | 2 . 3 Treads 2 | 2 . . Leg 3 | . . 3 Wheel . | . . . Hover . | . . . Flight . | . . . Utility 6 | 2 1 3 Device 2 | 1 . 1 Storage 2 | 1 1 . Processor . | . . . Hackware . | . . . Protection 2 | . . 2 Artifact . | . . . Weapon 5 | 2 1 2 Energy Gun 2 | 1 1 . Energy Cannon . | . . . Ballistic Gun 3 | 1 . 2 Ballistic Cannon . | . . . Launcher . | . . . Special Weapon . | . . . Impact Weapon . | . . . Slashing Weapon . | . . . Piercing Weapon . | . . . Special Melee Weapon . | . . . Unidentified Prototypes . | . . . Parts Lost 6 | . . 6 Power 1 | . . 1 Propulsion 2 | . . 2 Utility 1 | . . 1 Weapon 2 | . . 2 Highest Loss Streak 4 | . . 4 To Critical Strikes . | . . . Average Slot Usage (%) 99 | . 100 98 Engine 2 | . 4 1 Core 11 | . 9 12 Treads 16 | . 28 4 Leg 11 | . . 23 Device 12 | . 14 10 Storage 14 | . 14 14 Protection 1 | . . 3 Energy Gun 13 | . 14 13 Ballistic Gun 14 | . 14 14 Naked Turns . | . . . Heaviest Build 21 | 11 19 21 Greatest Support 40 | 40 40 40 Greatest Overweight (x) 2 | 2 . 1 Average Overweight (x) . | . . . Largest Inventory Capacity 10 | 8 10 10 Average Capacity 9 | 7 9 10 Most Carried 10 | 8 9 10 Average Carried 8 | 5 8 9 Final Capacity 10 | 8 10 10 Final Carried 9 | 8 9 7 Class Distribution -------------------- 100% | Mutant Dominant Class ---------------- Mutant | -10/Materials Mutant | -10/Mines Resources | -11 -10 -10 ----------- Run | Jun Mat Min Matter Collected 437 | 279 64 94 Remotely . | . . . Salvage Created 737 | 124 304 309 Parts 54 | 8 24 22 Haulers Intercepted . | . . . Recyclers Shooed 1 | 1 . . Parts Field Recycled . | . . . Retrieved Matter . | . . . Parts Self-Destructed . | . . . Prevented . | . . . Kills | -11 -10 -10 ------- Run | Jun Mat Min Combat Hostiles Destroyed 20 | . 9 11 Guns 20 | . 9 11 Classes Destroyed 6 | 2 3 1 Tunneler 2 | 2 . . Recycler 1 | 1 . . Watcher 1 | . 1 . Swarmer 9 | . 3 6 Grunt 10 | . 6 4 Sentry 1 | . . 1 Best Kill Streak 5 | 2 5 3 Combat Bots Only 5 | . 5 3 Max Kills in Single Turn 2 | 1 1 2 Gunslinging 1 | . . 1 Exploded . | . . . Melee . | . . . Uniques/NPCs Destroyed . | . . . Combat | -11 -10 -10 -------- Run | Jun Mat Min Damage Taken 1208 | . 361 847 Core 262 | . 65 197 Absorbed by Shields . | . . . Core Remaining (%) 100 | 100 . . Volleys Fired 82 | 9 44 29 Largest 2 | 2 2 2 Hottest 70 | 60 70 70 Shots Fired 163 | 18 87 58 Gun 163 | 18 87 58 Cannon . | . . . Launcher . | . . . Special . | . . . Kinetic 85 | 9 44 32 Thermal 78 | 9 43 26 Explosive . | . . . Electromagnetic . | . . . Robot Hit Streak 12 | 4 12 8 Robot Miss Streak 8 | 2 8 2 Penetration Max . | . . . Secondary Targets 3 | . . 3 Max Gunslinging Chain 1 | . . 1 Shots Hit Robots 106 | 11 56 39 Core Hits 47 | 5 22 20 Critical Kills . | . . . Critical Parts Destroyed 1 | . . 1 Critical Strikes 4 | . 2 2 Burn 3 | . 2 1 Destroy 1 | . . 1 Melee Attacks . | . . . Impact . | . . . Slashing . | . . . Piercing . | . . . Sneak Attacks . | . . . Combat Hostiles . | . . . Follow-up Attacks . | . . . Damage Inflicted 1094 | 121 575 398 Guns 1092 | 121 575 396 Cannons . | . . . Explosions . | . . . Melee . | . . . Ramming 2 | . . 2 Kinetic 517 | 61 248 208 Thermal 575 | 60 327 188 Explosive . | . . . Electromagnetic . | . . . Impact . | . . . Slashing . | . . . Piercing . | . . . Highest Corruption . | . . . Average Corruption . | . . . Corruption Purged . | . . . Corruption Blocked . | . . . Overload Shots . | . . . Overflow Damage . | . . . Projectiles . | . . . Explosions . | . . . Melee . | . . . Knockbacks . | . . . Impact . | . . . Kinetic . | . . . Secondary . | . . . Self-Inflicted Damage . | . . . Shots . | . . . Rammed . | . . . Targets Rammed 1 | . . 1 Kicked 1 | . . 1 Crushed . | . . . Highest Temperature 239 | 40 239 211 Average Temperature 79 | 18 87 79 Received Heat Transfer 480 | . 150 330 Siege Activations . | . . . Robots Corrupted . | . . . Combat Hostiles . | . . . Parts Fried . | . . . Impact Corruptions . | . . . Robots Melted . | . . . Combat Hostiles . | . . . Parts Melted 3 | . 2 1 Heat Transferred 1864 | 125 1110 629 Parts Sabotaged . | . . . Parts Stolen . | . . . Parts Stripped . | . . . Power Chain Reactions . | . . . Missiles Intercepted . | . . . Alert | -11 -10 -10 ------- Run | Jun Mat Min Peak Influence 249 | 15 249 207 Initial 27 | . 9 27 Average 93 | 7 85 123 Maximum Alert Level 1 | . 1 1 Low Security (%) 77 | 100 84 62 Level 1 22 | . 15 37 Level 2 . | . . . Level 3 . | . . . Level 4 . | . . . Level 5 . | . . . High Security . | . . . Max Security . | . . . Squads Dispatched 1 | . 1 . Investigation 1 | . 1 . Extermination . | . . . Reinforcement . | . . . Assault . | . . . Garrison . | . . . Intercept . | . . . Searches Triggered . | . . . Construction Impeded . | . . . Haulers Reinforced . | . . . Active Scanning Responses . | . . . Cargo Convoy Interrupts . | . . . Stealth | -11 -10 -10 --------- Run | Jun Mat Min Distress Signals . | . . . Communications Jammed . | . . . Distress Signals . | . . . Times Spotted 28 | . 16 12 Peak Tracking Total 5 | . 5 3 Tactical Retreats 2 | . 2 . Traps | -11 -10 -10 ------- Run | Jun Mat Min Traps Triggered 1 | . 1 . Indirectly . | . . . Trap Hack Attempts . | . . . Triggered . | . . . Disarmed . | . . . Reprogrammed 6 | . 6 . Reused . | . . . Traps Extracted . | . . . Installed . | . . . Triggered . | . . . Machines | -11 -10 -10 ---------- Run | Jun Mat Min Machines Disabled . | . . . Max in Single Turn . | . . . Machines Repaired . | . . . Machines Sabotaged . | . . . Overloaded Fab Kills . | . . . Hacking | -11 -10 -10 --------- Run | Jun Mat Min Machines Accessed 3 | . 3 . Terminals 3 | . 3 . Fabricators . | . . . Repair Stations . | . . . Recycling Units . | . . . Scanalyzers . | . . . Garrison Access . | . . . Total Hacks 16 | . 16 . Successful 8 | . 8 . Failed 8 | . 8 . Catastrophic 1 | . 1 . Database Lockouts . | . . . Manual 2 | . 2 . Terminals 16 | . 16 . Fabricators . | . . . Repair Stations . | . . . Recycling Units . | . . . Scanalyzers . | . . . Garrison Access . | . . . Terminal Hacks 8 | . 8 . Record 1 | . 1 . Robot Analysis 1 | . 1 . Branch Access Points 1 | . 1 . Alert Level 1 | . 1 . Unreport Threat 1 | . 1 . Reprogram Traps 1 | . 1 . Zone Layout 2 | . 2 . Fabricator Hacks . | . . . Repair Station Hacks . | . . . Recycling Unit Hacks . | . . . Scanalyzer . | . . . Garrison Access Hacks . | . . . Unauthorized Hacks . | . . . Terminals . | . . . Fabricators . | . . . Repair Stations . | . . . Recycling Units . | . . . Scanalyzers . | . . . Garrison Access . | . . . Data Cores Recovered . | . . . Used . | . . . Hacking Detections 3 | . 3 . Full Trace Events 1 | . 1 . Feedback Events . | . . . Feedback Blocked . | . . . Robot Schematics Acquired . | . . . Robots Built . | . . . Authchips . | . . . Time . | . . . Total Robot Build Rating . | . . . Part Schematics Acquired . | . . . Parts Built . | . . . Authchips . | . . . Time . | . . . Total Part Build Rating . | . . . Parts Repaired . | . . . Time . | . . . Parts Recycled . | . . . Recycled Matter . | . . . Retrieved Matter . | . . . Retrieved Components . | . . . Parts Scanalyzed . | . . . Part Schematics Acquired . | . . . Parts Damaged . | . . . Bothacking | -11 -10 -10 ------------ Run | Jun Mat Min Used RIF Installer . | . . . Robots Hacked . | . . . Non-combat . | . . . Combat . | . . . Robot Hacks Applied . | . . . Relay Couplers Released . | . . . Fabnet Peak Effective % . | . . . Robots Rewired . | . . . Allies Hacked . | . . . Hacks Repelled . | . . . Allies | -11 -10 -10 -------- Run | Jun Mat Min Total Allies . | . . . Largest Group . | . . . Highest-Rated Group . | . . . Highest-Rated Ally . | . . . Total Orders . | . . . Ally Attacks . | . . . Total Damage . | . . . Kills . | . . . Allies Corrupted . | . . . Allies Melted . | . . . Intel | -11 -10 -10 ------- Run | Jun Mat Min Robot Analysis Total 1 | . 1 . Derelict Logs Recovered . | . . . Drone Launches . | . . . Drone Recoveries . | . . . Exploration | -11 -10 -10 ------------- Run | Jun Mat Min Turns Passed 1387 | 160 629 598 Spaces Moved 657 | 75 284 298 Core 15 | 15 . . Treads 376 | 60 284 32 Legs 266 | . . 266 Wheels . | . . . Hover . | . . . Flight . | . . . Fastest Speed 50 | 50 160 120 Average Speed 145 | 153 160 129 Slowest Speed 190 | 160 160 190 Overloaded Moves . | . . . Propulsion Burnouts . | . . . Robots Hopped . | . . . Cave-ins Triggered . | . . . Exploration Rate (%) 32 | 5 33 60 Regions Visited 2 Branch Regions 1 Pre-discovered Areas . | . . . Known Exits Taken 1 | . 1 . Unknown Exits Taken 1 | 1 . . Scrap Searched . | . . . Spaces Dug . | . . . Terrain Destroyed . | . . . Melee . | . . . Projectile . | . . . AOE . | . . . Terrain Rammed . | . . . Walls Destroyed . | . . . Machines Disabled . | . . . Actions | -11 -10 -10 --------- Run | Jun Mat Min Total 939 | 101 383 455 Wait 153 | . 42 111 Move 655 | 74 283 298 Hop . | . . . Pick Up 19 | 10 5 4 Fast Attach 7 | 6 . 1 Attach 6 | 1 . 5 Detach . | . . . Swap 7 | . 3 4 Drop 9 | 1 6 2 Fire 82 | 9 44 29 Melee . | . . . Ram . | . . . Kick 1 | . . 1 Crush . | . . . Escape Stasis . | . . . Rewire . | . . . Trap . | . . . Miscellaneous . | . . . Route ------- -11/Junkyard -10/Materials (discovered 3 exits: [*Mat] / *Min x2) -10/Mines (discovered 1 exit: [*Mat]) History --------- Turn | Location | Event 30 | -11/Junkyard | Discovered new exit (range 13) 161 | -11/Junkyard | Entered Materials 311 | -10/Materials | Build established: Mutant 424 | -10/Materials | Discovered new exit (range 12) 646 | -10/Materials | Discovered new exit (range 14) 740 | -10/Materials | Identified exit to Mines 790 | -10/Materials | Entered Mines 1119 | -10/Mines | Discovered new exit (range 4) 1273 | -10/Mines | Core integrity fell below 50% 1354 | -10/Mines | Core integrity fell below 20% 1388 | -10/Mines | Destroyed by Y-45 Defender with Beam Rifle Last Messages --------------- 01274_ Critical hit (Burn: +37). 01276_ G-47 Trooper destroyed. 01278_ Acquired 13 matter. 01287_ Acquired 10 matter. 01308_ K-01 Serf collects debris. 01322_ Lgt. Assault Rifle destroyed. 01323_ K-01 Serf collects debris. 01325_ Acquired 10 matter. 01327_ Lgt. Nuclear Core destroyed. 01327_ K-01 Serf collects debris. 01350_ Critical hit (Burn: +37). 01356_ Y-45 Defender destroyed. 01356_ K-01 Serf collects debris. 01356_ Med. Laser destroyed. 01370_ Acquired Hvy. Assault Rifle. 01370_ K-01 Serf collects debris. 01379_ Y-45 Defender suffers critical hit (Destroy). 01379_ Destroyed Hvy. Assault Rifle. 01380_ Aluminum Leg destroyed. 01380_ Critical hit (Burn: +37). Map ----- +----------------------------------------------------+ | ?????????????????????????????????????????????????? | | ?????????????????????????????????????????????????? | | ?????????????????????????????????????????????????? | | ????????????????????????????#######??????????????? | | ???????????????????????????## ???????????????? | | ??????????????????????????## ???????????????? | | ?????????????????????????? #???????????????? | | ??????????????????????????? ##??????????????? | | ???????????????????????????? ##?????????????? | | ????????????????????????????# ##????????????? | | ???????????????????????###?## ##???????????? | | ??????????????????????##]!## #???????????? | | ??????????????????????#"!! # #???????????? | | ??????????????????????# / #????????????? | | ??????????????????????# / #?????????????? | | ??????????????????????#"]/ # ##?????????????? | | ??????????????????????##[??# ##?????????????? | | ???????????????????????????## #?????????????? | | ????????????????????????????## #??????#####??? | | ?????????????????????????????##%! ##?????? ##?? | | ?????????????????????????????##%! ###???? ##? | | ????????????????############## * ##???# #? | | ????????????????# #???# #? | | ??????????? ! #???## #?? | | ???????????? ####### ##*% ### ##????# ##?? | | ????????????????????????#@## ##??###?????# #??? | | ????????? ?????????????# Y ##???????????# #??? | | ????????? ?????????????# ## ##???????????# ##?? | | ????????# ?????????????# ## #??????????## ##? | | ????????# #??????????### ## ##?????????## #? | | ????????# ??????????## ## ##??????????# #? | | ???????## ?????###### #??????????## #? | | ???????# ?????# #??????????# ## | | ???????# ?????# ##????????## # | | ??????# #?????# ##### ###???#### | | ??????# ####### #???## """ ##??# < | | #????## #????# """ #??# ## # | | #??## ####????## """ #### ### ## | | ### #????????# #?########? | | #???????# ############?????????? | | # #???????# ##????????????????????? | | # #???????#####?????????????????????? | | ## #####????####?????????????????????????? | | ?## ##???????## ##??####??????????????????? | | ??# ##????????# #### ##?????????????????? | | ?## ######????## ##????????????????? | | ## #### ###### ##???????????????? | | # #?# ## #### #???????????????? | | # #### ##??## % #########???????? | | ##????#= ##??????? | +----------------------------------------------------+ Best States ------------- Heat Dissipation 25 Energy Generation 14 Energy Capacity 160 Matter Stores 300 Matter Capacity 300 Sight Range 16 Terrain Scan Density 10 Armor Coverage 150 Evasion (%) 55 Recoil Reduction 2 Item Schematics ----------------- None Robot Schematics ------------------ None Fabricated ------------ Nothing Alien Tech Used ----------------- None Achievements -------------- None Challenges ------------ None Game ------ Seed PhysicsBeamRailgun Manual? 0 Play Time 00:14:15 Cumulative 17.7 hours Start 2024.02.11 @ 02:05:06 End 2024.02.11 @ 02:17:24 Sessions 1 Manual Loads 0 Difficulty Rogue Special Mode None Game No. 12 Rogue 12 Adventurer 0 Explorer 0 Win Type - Total 0 Types 0/0/0/0/0/0/0/0/0 Lore% 20 Gallery% 21 Achievement% 18 Wizard Run 0 Options --------- ASCII 0 Keyboard 0 Movement Numpad Keybinds 0 Fullscreen 1 Font 18/SmallcapsGlow Map View 76x50 Tactical HUD 1 Map Filters NONE Filters NONE Steam 1 RUN: ee851504-a3d6-4cfb-b3ac-915ace52e702